[Event "Gibraltar Masters 18th"]
[Site "Gibraltar"]
[Date "2020.01.27"]
[Round "7.42"]
[White "Beliavsky, Alexander G"]
[Black "Sankalp, Gupta"]
[Result "1/2-1/2"]
[ECO "D37"]
[WhiteElo "2529"]
[BlackElo "2400"]
[PlyCount "100"]
[EventDate "2020.01.21"]
[EventType "swiss"]
[EventRounds "10"]
[EventCountry "GGB"]
[SourceTitle "BritBase"]
[Source "John Saunders"]
[SourceDate "2021.06.05"]
[SourceVersion "1"]
[SourceVersionDate "2021.06.05"]
[SourceQuality "1"]
[TimeControl "40/100:0"]
[WhiteClock "0:25:20"]
[BlackClock "0:33:13"]

1. c4 {[%emt 0:00:00]} Nf6 {[%emt 0:00:00]} 2. Nc3 {[%emt 0:00:00]} e6 {
[%emt 0:00:00]} 3. Nf3 {[%emt 0:00:00]} d5 {[%emt 0:00:00]} 4. d4 {[%emt 0:00:
00]} a6 {[%emt 0:00:00]} 5. cxd5 {[%emt 0:00:00]} exd5 {[%emt 0:00:00]} 6. Bg5
{[%emt 0:00:00]} Be6 {[%emt 0:00:00]} 7. e3 {[%emt 0:00:00]} Nbd7 {[%emt 0:00:
00]} 8. h3 {[%emt 0:00:00]} Bd6 {[%emt 0:00:00]} 9. Bd3 {[%emt 0:00:00]} c6 {
[%emt 0:00:00]} 10. O-O {[%emt 0:00:00]} Qc7 {[%emt 0:00:00]} 11. Ne2 {[%emt 0:
00:00]} Nh5 {[%emt 0:00:00]} 12. Qd2 {[%emt 0:00:00]} h6 {[%emt 0:00:00]} 13.
Bf4 {[%emt 0:00:00]} g5 {[%emt 0:00:00]} 14. Bxd6 {[%emt 0:00:00]} Qxd6 {
[%emt 0:00:00]} 15. Qc3 {[%emt 0:00:00]} O-O {[%emt 0:00:00]} 16. Ne5 {[%emt 0:
00:00]} f6 {[%emt 0:00:00]} 17. Nxd7 {[%emt 0:00:00]} Bxd7 {[%emt 0:00:00]} 18.
Qc5 {[%emt 0:00:00]} Qe6 {[%emt 0:00:00]} 19. e4 {[%emt 0:00:00]} Kh8 {[%emt 0:
00:00]} 20. exd5 {[%emt 0:00:00]} Qxd5 {[%emt 0:00:00]} 21. Qxd5 {[%emt 0:00:
00]} cxd5 {[%emt 0:00:00]} 22. Rfc1 {[%emt 0:00:00]} Ng7 {[%emt 0:00:00]} 23.
Rc7 {[%emt 0:00:00]} Bc6 {[%emt 0:00:00]} 24. Ng3 {[%emt 0:00:00]} Rac8 {
[%emt 0:00:00]} 25. Re7 {[%emt 0:00:00]} f5 {[%emt 0:00:00]} 26. Rae1 {[%emt 0:
00:00]} f4 {[%emt 0:00:00]} 27. Ne2 {[%emt 0:00:00]} Rf6 {[%emt 0:00:00]} 28.
Nc3 {[%emt 0:00:00]} Kg8 {[%emt 0:00:00]} 29. R7e5 {[%emt 0:00:00]} Rd8 {
[%emt 0:00:00]} 30. b4 {[%emt 0:00:00]} Kf8 {[%emt 0:00:00]} 31. a4 {[%emt 0:
00:00]} Rfd6 {[%emt 0:00:00]} 32. g3 {[%emt 0:00:00]} Be8 {[%emt 0:00:00]} 33.
b5 {[%emt 0:00:00]} Bf7 {[%emt 0:00:00]} 34. gxf4 {[%emt 0:00:00]} gxf4 {
[%emt 0:00:00]} 35. Ne2 {[%emt 0:00:00]} axb5 {[%emt 0:00:00]} 36. axb5 {
[%emt 0:00:00]} Rf6 {[%emt 0:00:00]} 37. f3 {[%emt 0:00:00]} Ra8 {[%emt 0:00:
00]} 38. Rc1 {[%emt 0:00:00]} Ne8 {[%emt 0:00:00]} 39. Kf2 {[%emt 0:00:00]} Ra3
{[%emt 0:00:57]} 40. Rc3 {[%emt 0:00:00]} Rxc3 {[%emt 0:00:11]} 41. Nxc3 {
[%emt 0:00:00]} Nc7 {[%emt 0:00:00]} 42. h4 {[%emt 0:00:00]} b6 {[%emt 0:00:00]
} 43. Bf5 {[%emt 0:00:00]} Rd6 {[%emt 0:00:00]} 44. Re1 {[%emt 0:00:00]} Rd8 {
[%emt 0:00:00]} 45. Ra1 {[%emt 0:00:00]} Ra8 {[%emt 0:00:00]} 46. Rxa8+ {
[%emt 0:00:00]} Nxa8 {[%emt 0:00:00]} 47. Bd7 {[%emt 0:00:00]} Nc7 {[%emt 0:00:
00]} 48. Na4 {[%emt 0:00:00]} Be8 {[%emt 0:00:00]} 49. Bxe8 {[%emt 0:00:00]}
Kxe8 {[%emt 0:00:00]} 50. Nxb6 {[%emt 0:00:00]} Kf7 {[%emt 0:00:00]} 1/2-1/2

[Event "Gibraltar Masters 18th"]
[Site "Gibraltar"]
[Date "2020.01.27"]
[Round "7.43"]
[White "Mendonca, Leon Luke"]
[Black "Kozak, Adam"]
[Result "1-0"]
[ECO "E46"]
[WhiteElo "2417"]
[BlackElo "2523"]
[PlyCount "167"]
[EventDate "2020.01.21"]
[EventType "swiss"]
[EventRounds "10"]
[EventCountry "GGB"]
[SourceTitle "BritBase"]
[Source "John Saunders"]
[SourceDate "2021.06.05"]
[SourceVersion "1"]
[SourceVersionDate "2021.06.05"]
[SourceQuality "1"]
[TimeControl "40/100:0"]
[WhiteClock "0:11:55"]
[BlackClock "0:32:21"]

1. d4 {[%emt 0:00:00]} Nf6 {[%emt 0:00:00]} 2. c4 {[%emt 0:00:00]} e6 {[%emt 0:
00:00]} 3. Nc3 {[%emt 0:00:00]} Bb4 {[%emt 0:00:00]} 4. e3 {[%emt 0:00:00]} O-O
{[%emt 0:00:00]} 5. Nge2 {[%emt 0:00:00]} c6 {[%emt 0:00:00]} 6. a3 {[%emt 0:
00:00]} Ba5 {[%emt 0:00:00]} 7. b4 {[%emt 0:00:00]} Bc7 {[%emt 0:00:00]} 8. Bb2
{[%emt 0:00:00]} d5 {[%emt 0:00:00]} 9. Ng3 {[%emt 0:00:00]} Nbd7 {[%emt 0:00:
00]} 10. Qc2 {[%emt 0:00:00]} Re8 {[%emt 0:00:00]} 11. Rd1 {[%emt 0:00:00]} Nb6
{[%emt 0:00:00]} 12. c5 {[%emt 0:00:00]} Nbd7 {[%emt 0:00:00]} 13. Be2 {
[%emt 0:00:00]} e5 {[%emt 0:00:00]} 14. dxe5 {[%emt 0:00:00]} Nxe5 {[%emt 0:00:
00]} 15. e4 {[%emt 0:00:00]} d4 {[%emt 0:00:00]} 16. Nb1 {[%emt 0:00:00]} d3 {
[%emt 0:00:00]} 17. Bxd3 {[%emt 0:00:00]} Nfg4 {[%emt 0:00:00]} 18. Be2 {
[%emt 0:00:00]} Qf6 {[%emt 0:00:00]} 19. Bd4 {[%emt 0:00:00]} Rd8 {[%emt 0:00:
00]} 20. Qc3 {[%emt 0:00:00]} Be6 {[%emt 0:00:00]} 21. O-O {[%emt 0:00:00]}
Rxd4 {[%emt 0:00:00]} 22. Qxd4 {[%emt 0:00:00]} Qh4 {[%emt 0:00:00]} 23. h3 {
[%emt 0:00:00]} Nf6 {[%emt 0:00:00]} 24. Nf5 {[%emt 0:00:00]} Qxe4 {[%emt 0:00:
00]} 25. Qxe4 {[%emt 0:00:00]} Nxe4 {[%emt 0:00:00]} 26. Nd4 {[%emt 0:00:00]}
Bd5 {[%emt 0:00:00]} 27. Nb5 {[%emt 0:00:00]} Bd8 {[%emt 0:00:00]} 28. N5c3 {
[%emt 0:00:00]} Nf6 {[%emt 0:00:00]} 29. Nxd5 {[%emt 0:00:46]} Nxd5 {[%emt 0:
00:00]} 30. Rfe1 {[%emt 0:00:13]} Bf6 {[%emt 0:00:00]} 31. Bf1 {[%emt 0:00:07]}
a5 {[%emt 0:00:00]} 32. b5 {[%emt 0:00:00]} Kf8 {[%emt 0:00:00]} 33. Re4 {
[%emt 0:00:00]} Nd7 {[%emt 0:00:00]} 34. Rc1 {[%emt 0:00:00]} Bg5 {[%emt 0:00:
09]} 35. Rc2 {[%emt 0:00:00]} Be7 {[%emt 0:00:00]} 36. bxc6 {[%emt 0:00:00]}
bxc6 {[%emt 0:00:00]} 37. Rec4 {[%emt 0:00:00]} Ne5 {[%emt 0:00:00]} 38. Re4 {
[%emt 0:00:00]} Nd7 {[%emt 0:00:00]} 39. Rec4 {[%emt 0:00:00]} Ne5 {[%emt 0:00:
00]} 40. Ra4 {[%emt 0:00:00]} Nd7 {[%emt 0:00:00]} 41. Nd2 {[%emt 0:00:00]}
Nxc5 {[%emt 0:00:00]} 42. Rac4 {[%emt 0:00:00]} Nd7 {[%emt 0:00:00]} 43. Rxc6 {
[%emt 0:00:00]} Bxa3 {[%emt 0:00:00]} 44. Rc8+ {[%emt 0:00:00]} Rxc8 {[%emt 0:
00:00]} 45. Rxc8+ {[%emt 0:00:00]} Ke7 {[%emt 0:00:00]} 46. Bb5 {[%emt 0:00:00]
} Bb4 {[%emt 0:00:00]} 47. Nc4 {[%emt 0:00:00]} N7b6 {[%emt 0:00:00]} 48. Nxb6
{[%emt 0:00:00]} Nxb6 {[%emt 0:00:00]} 49. Rc7+ {[%emt 0:00:00]} Kf8 {[%emt 0:
00:00]} 50. Rc6 {[%emt 0:00:00]} Nd5 {[%emt 0:00:00]} 51. Bc4 {[%emt 0:00:00]}
Ne7 {[%emt 0:00:00]} 52. Ra6 {[%emt 0:00:00]} g5 {[%emt 0:00:00]} 53. Rf6 {
[%emt 0:00:00]} Kg7 {[%emt 0:00:00]} 54. Rxf7+ {[%emt 0:00:00]} Kg6 {[%emt 0:
00:00]} 55. Rf8 {[%emt 0:00:00]} h5 {[%emt 0:00:00]} 56. g3 {[%emt 0:00:00]} h4
{[%emt 0:00:00]} 57. gxh4 {[%emt 0:00:00]} gxh4 {[%emt 0:00:00]} 58. Rf4 {
[%emt 0:00:00]} Nc6 {[%emt 0:00:00]} 59. Rxh4 {[%emt 0:00:00]} Ne5 {[%emt 0:00:
00]} 60. Be2 {[%emt 0:00:00]} Kg5 {[%emt 0:00:00]} 61. Rh5+ {[%emt 0:00:00]}
Kf6 {[%emt 0:00:00]} 62. Rh6+ {[%emt 0:00:00]} Kg5 {[%emt 0:00:00]} 63. Rb6 {
[%emt 0:00:00]} Ng6 {[%emt 0:00:00]} 64. Rb5+ {[%emt 0:00:00]} Kf6 {[%emt 0:00:
00]} 65. Bd3 {[%emt 0:00:00]} Ne5 {[%emt 0:00:00]} 66. Be4 {[%emt 0:00:00]} Bd2
{[%emt 0:00:00]} 67. Kg2 {[%emt 0:00:00]} Nc4 {[%emt 0:00:00]} 68. Rc5 {
[%emt 0:00:00]} Nd6 {[%emt 0:00:00]} 69. Bc2 {[%emt 0:00:00]} Bb4 {[%emt 0:00:
00]} 70. Rd5 {[%emt 0:00:00]} Ke6 {[%emt 0:00:00]} 71. Rh5 {[%emt 0:00:00]} Nb7
{[%emt 0:00:00]} 72. Rh8 {[%emt 0:00:00]} Nc5 {[%emt 0:00:00]} 73. Ra8 {
[%emt 0:00:00]} Ke5 {[%emt 0:00:00]} 74. Kg3 {[%emt 0:00:00]} Kd4 {[%emt 0:00:
00]} 75. h4 {[%emt 0:00:00]} Kc3 {[%emt 0:00:00]} 76. Bf5 {[%emt 0:00:00]} a4 {
[%emt 0:00:00]} 77. h5 {[%emt 0:00:00]} a3 {[%emt 0:00:00]} 78. h6 {[%emt 0:00:
00]} Kb2 {[%emt 0:00:00]} 79. Rb8 {[%emt 0:00:00]} a2 {[%emt 0:00:00]} 80.
Rxb4+ {[%emt 0:00:00]} Ka1 {[%emt 0:00:00]} 81. Rb1+ {[%emt 0:00:33]} axb1=N {
[%emt 0:00:00]} 82. Bxb1 {[%emt 0:00:00]} Kxb1 {[%emt 0:00:00]} 83. h7 {
[%emt 0:00:00]} Ne4+ {[%emt 0:00:00]} 84. Kg2 {[%emt 0:00:00]} 1-0

[Event "Gibraltar Masters 18th"]
[Site "Gibraltar"]
[Date "2020.01.27"]
[Round "7.44"]
[White "Flom, Gabriel"]
[Black "Zhukova, Natalia"]
[Result "1/2-1/2"]
[ECO "D58"]
[WhiteElo "2510"]
[BlackElo "2338"]
[PlyCount "100"]
[EventDate "2020.01.21"]
[EventType "swiss"]
[EventRounds "10"]
[EventCountry "GGB"]
[SourceTitle "BritBase"]
[Source "John Saunders"]
[SourceDate "2021.06.05"]
[SourceVersion "1"]
[SourceVersionDate "2021.06.05"]
[SourceQuality "1"]
[TimeControl "40/100:0"]
[WhiteClock "1:11:30"]
[BlackClock "0:31:59"]

1. d4 {[%emt 0:00:00]} d5 {[%emt 0:00:00]} 2. c4 {[%emt 0:00:00]} e6 {[%emt 0:
00:00]} 3. Nc3 {[%emt 0:00:00]} Nf6 {[%emt 0:00:00]} 4. Bg5 {[%emt 0:00:00]}
Be7 {[%emt 0:00:00]} 5. Nf3 {[%emt 0:00:00]} O-O {[%emt 0:00:00]} 6. e3 {
[%emt 0:00:00]} h6 {[%emt 0:00:00]} 7. Bh4 {[%emt 0:00:00]} b6 {[%emt 0:00:00]}
8. Rc1 {[%emt 0:00:00]} Bb7 {[%emt 0:00:00]} 9. Bxf6 {[%emt 0:00:00]} Bxf6 {
[%emt 0:00:00]} 10. cxd5 {[%emt 0:00:00]} exd5 {[%emt 0:00:00]} 11. Qb3 {
[%emt 0:00:00]} Re8 {[%emt 0:00:00]} 12. Be2 {[%emt 0:00:00]} c6 {[%emt 0:00:
00]} 13. O-O {[%emt 0:00:00]} Nd7 {[%emt 0:00:00]} 14. Rfe1 {[%emt 0:00:00]}
Nf8 {[%emt 0:00:00]} 15. a4 {[%emt 0:00:00]} Rb8 {[%emt 0:00:00]} 16. e4 {
[%emt 0:00:00]} Ne6 {[%emt 0:00:00]} 17. e5 {[%emt 0:00:00]} Be7 {[%emt 0:00:
00]} 18. Rcd1 {[%emt 0:00:00]} a5 {[%emt 0:00:00]} 19. Bd3 {[%emt 0:00:00]} Bb4
{[%emt 0:00:00]} 20. Bb1 {[%emt 0:00:00]} Bc8 {[%emt 0:00:00]} 21. h4 {[%emt 0:
00:00]} Nf8 {[%emt 0:00:00]} 22. Re3 {[%emt 0:00:00]} Bg4 {[%emt 0:00:00]} 23.
g3 {[%emt 0:00:00]} Ne6 {[%emt 0:00:00]} 24. Ne2 {[%emt 0:00:00]} g6 {[%emt 0:
00:00]} 25. Nh2 {[%emt 0:00:00]} Bxe2 {[%emt 0:00:00]} 26. Rxe2 {[%emt 0:00:00]
} h5 {[%emt 0:00:00]} 27. Kg2 {[%emt 0:00:00]} c5 {[%emt 0:00:00]} 28. dxc5 {
[%emt 0:00:00]} Nxc5 {[%emt 0:00:00]} 29. Qa2 {[%emt 0:00:00]} Qd7 {[%emt 0:00:
00]} 30. Rxd5 {[%emt 0:00:00]} Qxa4 {[%emt 0:00:00]} 31. Qxa4 {[%emt 0:00:00]}
Nxa4 {[%emt 0:00:00]} 32. Nf3 {[%emt 0:00:00]} Nc5 {[%emt 0:00:00]} 33. Ba2 {
[%emt 0:00:00]} Kg7 {[%emt 0:00:00]} 34. Ng5 {[%emt 0:00:00]} Re7 {[%emt 0:00:
00]} 35. f4 {[%emt 0:00:00]} Rbb7 {[%emt 0:00:03]} 36. Rd6 {[%emt 0:00:00]} Nb3
{[%emt 0:01:02]} 37. Rd8 {[%emt 0:00:00]} Nc1 {[%emt 0:00:00]} 38. Rc2 {
[%emt 0:00:00]} Rec7 {[%emt 0:00:00]} 39. Bc4 {[%emt 0:00:00]} b5 {[%emt 0:00:
00]} 40. Rxc1 {[%emt 0:00:00]} Rxc4 {[%emt 0:00:00]} 41. Rcd1 {[%emt 0:00:00]}
Be7 {[%emt 0:00:00]} 42. Ra8 {[%emt 0:00:00]} a4 {[%emt 0:00:00]} 43. Kf3 {
[%emt 0:00:00]} a3 {[%emt 0:00:00]} 44. bxa3 {[%emt 0:00:00]} Rc3+ {[%emt 0:00:
00]} 45. Kf2 {[%emt 0:00:00]} Rxa3 {[%emt 0:00:00]} 46. Rxa3 {[%emt 0:00:00]}
Bxa3 {[%emt 0:00:00]} 47. Ne4 {[%emt 0:00:00]} Be7 {[%emt 0:00:00]} 48. Nd6 {
[%emt 0:00:00]} Bxd6 {[%emt 0:00:00]} 49. exd6 {[%emt 0:00:00]} Rd7 {[%emt 0:
00:00]} 50. Rb1 {[%emt 0:00:00]} Rxd6 {[%emt 0:00:07]} 1/2-1/2

[Event "Gibraltar Masters 18th"]
[Site "Gibraltar"]
[Date "2020.01.27"]
[Round "7.45"]
[White "Barbosa, Evandro Amorim"]
[Black "Lujan, Carolina"]
[Result "1-0"]
[ECO "B46"]
[WhiteElo "2501"]
[BlackElo "2330"]
[PlyCount "81"]
[EventDate "2020.01.21"]
[EventType "swiss"]
[EventRounds "10"]
[EventCountry "GGB"]
[SourceTitle "BritBase"]
[Source "John Saunders"]
[SourceDate "2021.06.05"]
[SourceVersion "1"]
[SourceVersionDate "2021.06.05"]
[SourceQuality "1"]
[TimeControl "40/100:0"]
[WhiteClock "0:07:48"]
[BlackClock "0:02:23"]

1. e4 {[%emt 0:00:00]} c5 {[%emt 0:00:00]} 2. Nf3 {[%emt 0:00:00]} Nc6 {
[%emt 0:00:00]} 3. d4 {[%emt 0:00:00]} cxd4 {[%emt 0:00:00]} 4. Nxd4 {[%emt 0:
00:00]} e6 {[%emt 0:00:00]} 5. Nc3 {[%emt 0:00:00]} Qc7 {[%emt 0:00:00]} 6. f4
{[%emt 0:00:00]} a6 {[%emt 0:00:00]} 7. Nxc6 {[%emt 0:00:00]} bxc6 {[%emt 0:00:
00]} 8. Bd3 {[%emt 0:00:00]} d6 {[%emt 0:00:00]} 9. O-O {[%emt 0:00:00]} Nf6 {
[%emt 0:00:00]} 10. Kh1 {[%emt 0:00:00]} Be7 {[%emt 0:00:00]} 11. Qe2 {[%emt 0:
00:00]} Nd7 {[%emt 0:00:00]} 12. Bd2 {[%emt 0:00:00]} c5 {[%emt 0:00:00]} 13.
Rae1 {[%emt 0:00:00]} O-O {[%emt 0:00:00]} 14. Nd1 {[%emt 0:00:00]} Bh4 {
[%emt 0:00:00]} 15. Nf2 {[%emt 0:00:00]} e5 {[%emt 0:00:00]} 16. f5 {[%emt 0:
00:00]} Bb7 {[%emt 0:00:00]} 17. c4 {[%emt 0:00:00]} Bxf2 {[%emt 0:00:00]} 18.
Qxf2 {[%emt 0:00:00]} f6 {[%emt 0:00:00]} 19. Qh4 {[%emt 0:00:00]} Rf7 {
[%emt 0:00:00]} 20. Rf3 {[%emt 0:00:00]} Kf8 {[%emt 0:00:00]} 21. Qxh7 {
[%emt 0:00:00]} g5 {[%emt 0:00:00]} 22. Qh5 {[%emt 0:00:00]} Ke7 {[%emt 0:00:
00]} 23. Rh3 {[%emt 0:00:00]} Rg8 {[%emt 0:00:00]} 24. Qg4 {[%emt 0:00:00]} Bc6
{[%emt 0:00:00]} 25. Bc2 {[%emt 0:00:00]} Rb8 {[%emt 0:00:00]} 26. Bc3 {
[%emt 0:00:00]} Qb7 {[%emt 0:00:00]} 27. Rd1 {[%emt 0:00:00]} Nb6 {[%emt 0:00:
00]} 28. b3 {[%emt 0:00:00]} a5 {[%emt 0:00:00]} 29. Qe2 {[%emt 0:00:00]} a4 {
[%emt 0:00:00]} 30. b4 {[%emt 0:00:00]} Qc7 {[%emt 0:00:00]} 31. b5 {[%emt 0:
00:00]} Bb7 {[%emt 0:00:00]} 32. Ba5 {[%emt 0:00:00]} Ra8 {[%emt 0:00:00]} 33.
Qe1 {[%emt 0:00:00]} Kf8 {[%emt 0:00:00]} 34. Qd2 {[%emt 0:00:00]} Rd7 {
[%emt 0:00:00]} 35. Qc3 {[%emt 0:00:00]} Kg7 {[%emt 0:00:02]} 36. Rh5 {[%emt 0:
00:00]} Rxa5 {[%emt 0:00:44]} 37. Qxa5 {[%emt 0:00:00]} Nxc4 {[%emt 0:00:00]}
38. Qc3 {[%emt 0:00:00]} d5 {[%emt 0:00:00]} 39. Qh3 {[%emt 0:00:00]} Kf8 {
[%emt 0:00:00]} 40. Rh8+ {[%emt 0:00:00]} Ke7 {[%emt 0:00:00]} 41. Qh6 {
[%emt 0:00:00]} 1-0

[Event "Gibraltar Masters 18th"]
[Site "Gibraltar"]
[Date "2020.01.27"]
[Round "7.46"]
[White "Reimanis, Ritvars"]
[Black "Bilguun, Sumiya"]
[Result "1-0"]
[ECO "A84"]
[WhiteElo "2370"]
[BlackElo "2486"]
[PlyCount "141"]
[EventDate "2020.01.21"]
[EventType "swiss"]
[EventRounds "10"]
[EventCountry "GGB"]
[SourceTitle "BritBase"]
[Source "John Saunders"]
[SourceDate "2021.06.05"]
[SourceVersion "1"]
[SourceVersionDate "2021.06.05"]
[SourceQuality "1"]
[TimeControl "40/100:0"]
[WhiteClock "0:16:52"]
[BlackClock "0:08:27"]

1. d4 {[%emt 0:00:00]} d5 {[%emt 0:00:00]} 2. c4 {[%emt 0:00:00]} e6 {[%emt 0:
00:00]} 3. Nf3 {[%emt 0:00:00]} c6 {[%emt 0:00:00]} 4. e3 {[%emt 0:00:00]} f5 {
[%emt 0:00:00]} 5. Bd3 {[%emt 0:00:00]} Nf6 {[%emt 0:00:00]} 6. O-O {[%emt 0:
00:00]} Bd6 {[%emt 0:00:00]} 7. b3 {[%emt 0:00:00]} Ne4 {[%emt 0:00:00]} 8. Ba3
{[%emt 0:00:00]} Bxa3 {[%emt 0:00:00]} 9. Nxa3 {[%emt 0:00:00]} Nd7 {[%emt 0:
00:00]} 10. Nc2 {[%emt 0:00:00]} a6 {[%emt 0:00:00]} 11. a4 {[%emt 0:00:00]} a5
{[%emt 0:00:00]} 12. Nce1 {[%emt 0:00:00]} b6 {[%emt 0:00:00]} 13. Rc1 {
[%emt 0:00:00]} Bb7 {[%emt 0:00:00]} 14. cxd5 {[%emt 0:00:00]} exd5 {[%emt 0:
00:00]} 15. Be2 {[%emt 0:00:00]} O-O {[%emt 0:00:00]} 16. Nd3 {[%emt 0:00:00]}
Rf6 {[%emt 0:00:00]} 17. Nfe5 {[%emt 0:00:00]} Nf8 {[%emt 0:00:00]} 18. f3 {
[%emt 0:00:00]} Ng5 {[%emt 0:00:00]} 19. Rf2 {[%emt 0:00:00]} Rc8 {[%emt 0:00:
00]} 20. Bf1 {[%emt 0:00:00]} Nfe6 {[%emt 0:00:00]} 21. Rfc2 {[%emt 0:00:00]}
Qe8 {[%emt 0:00:00]} 22. Qd2 {[%emt 0:00:00]} Rh6 {[%emt 0:00:00]} 23. g3 {
[%emt 0:00:00]} Nd8 {[%emt 0:00:00]} 24. h4 {[%emt 0:00:00]} Ngf7 {[%emt 0:00:
00]} 25. Bh3 {[%emt 0:00:00]} Nd6 {[%emt 0:00:00]} 26. f4 {[%emt 0:00:00]} Rf6
{[%emt 0:00:00]} 27. Nf2 {[%emt 0:00:00]} N6f7 {[%emt 0:00:00]} 28. g4 {
[%emt 0:00:00]} Nd6 {[%emt 0:00:00]} 29. g5 {[%emt 0:00:00]} Rf8 {[%emt 0:00:
00]} 30. b4 {[%emt 0:00:00]} Qh5 {[%emt 0:00:00]} 31. bxa5 {[%emt 0:00:00]}
bxa5 {[%emt 0:00:00]} 32. Kg2 {[%emt 0:00:00]} N8f7 {[%emt 0:00:00]} 33. Nfd3 {
[%emt 0:00:00]} Ne4 {[%emt 0:00:00]} 34. Qe1 {[%emt 0:00:00]} Nfd6 {[%emt 0:00:
15]} 35. Nf3 {[%emt 0:00:00]} Nc4 {[%emt 0:00:00]} 36. Nde5 {[%emt 0:00:00]} c5
{[%emt 0:00:18]} 37. Nd7 {[%emt 0:00:00]} cxd4 {[%emt 0:00:13]} 38. exd4 {
[%emt 0:00:00]} Rfe8 {[%emt 0:00:00]} 39. Nde5 {[%emt 0:00:27]} Ned6 {[%emt 0:
00:00]} 40. Kh2 {[%emt 0:00:26]} Ba8 {[%emt 0:00:11]} 41. Bg2 {[%emt 0:00:00]}
Rb8 {[%emt 0:00:00]} 42. Nd2 {[%emt 0:00:00]} Nxd2 {[%emt 0:00:00]} 43. Rxd2 {
[%emt 0:00:00]} Rb3 {[%emt 0:00:00]} 44. Rdc2 {[%emt 0:00:00]} Nc4 {[%emt 0:00:
00]} 45. Rc3 {[%emt 0:00:00]} Rb2 {[%emt 0:00:00]} 46. R1c2 {[%emt 0:00:00]}
Rxc2 {[%emt 0:00:00]} 47. Rxc2 {[%emt 0:00:00]} h6 {[%emt 0:00:00]} 48. Qg3 {
[%emt 0:00:00]} hxg5 {[%emt 0:00:00]} 49. Qxg5 {[%emt 0:00:00]} Qd1 {[%emt 0:
00:00]} 50. Qxf5 {[%emt 0:00:00]} Nd6 {[%emt 0:00:00]} 51. Qd3 {[%emt 0:00:00]}
Qxd3 {[%emt 0:00:00]} 52. Nxd3 {[%emt 0:00:00]} Nf5 {[%emt 0:00:00]} 53. Rc5 {
[%emt 0:00:00]} Nxd4 {[%emt 0:00:00]} 54. Rxa5 {[%emt 0:00:00]} Kh7 {[%emt 0:
00:00]} 55. Ne5 {[%emt 0:00:00]} Ne2 {[%emt 0:00:00]} 56. Nd3 {[%emt 0:00:00]}
Re3 {[%emt 0:00:00]} 57. Bxd5 {[%emt 0:00:00]} Bxd5 {[%emt 0:00:00]} 58. Rxd5 {
[%emt 0:00:00]} Nc3 {[%emt 0:00:00]} 59. Rh5+ {[%emt 0:00:00]} Kg8 {[%emt 0:00:
00]} 60. Nc5 {[%emt 0:00:00]} Re2+ {[%emt 0:00:00]} 61. Kh3 {[%emt 0:00:00]}
Ra2 {[%emt 0:00:00]} 62. Rg5 {[%emt 0:00:00]} Kf7 {[%emt 0:00:00]} 63. f5 {
[%emt 0:00:00]} Kf6 {[%emt 0:00:00]} 64. Rg6+ {[%emt 0:01:24]} Kxf5 {[%emt 0:
00:00]} 65. Rxg7 {[%emt 0:00:00]} Nxa4 {[%emt 0:00:00]} 66. Rg5+ {[%emt 0:00:
00]} Kf6 {[%emt 0:00:10]} 67. Ne4+ {[%emt 0:00:00]} Ke6 {[%emt 0:00:14]} 68. h5
{[%emt 0:00:00]} Ra3+ {[%emt 0:00:29]} 69. Kg4 {[%emt 0:00:00]} Re3 {[%emt 0:
00:00]} 70. Kf4 {[%emt 0:00:00]} Re1 {[%emt 0:00:00]} 71. Re5+ {[%emt 0:00:00]}
1-0

[Event "Gibraltar Masters 18th"]
[Site "Gibraltar"]
[Date "2020.01.27"]
[Round "7.47"]
[White "De Haan, Eric"]
[Black "Raja, Harshit"]
[Result "1/2-1/2"]
[ECO "E20"]
[WhiteElo "2308"]
[BlackElo "2482"]
[PlyCount "117"]
[EventDate "2020.01.21"]
[EventType "swiss"]
[EventRounds "10"]
[EventCountry "GGB"]
[SourceTitle "BritBase"]
[Source "John Saunders"]
[SourceDate "2021.06.05"]
[SourceVersion "1"]
[SourceVersionDate "2021.06.05"]
[SourceQuality "1"]
[TimeControl "40/100:0"]
[WhiteClock "0:00:35"]
[BlackClock "0:08:46"]

1. d4 {[%emt 0:00:00]} Nf6 {[%emt 0:00:00]} 2. c4 {[%emt 0:00:00]} e6 {[%emt 0:
00:00]} 3. Nc3 {[%emt 0:00:00]} Bb4 {[%emt 0:00:00]} 4. f3 {[%emt 0:00:00]} d5
{[%emt 0:00:00]} 5. a3 {[%emt 0:00:00]} Be7 {[%emt 0:00:00]} 6. e4 {[%emt 0:00:
00]} dxe4 {[%emt 0:00:00]} 7. fxe4 {[%emt 0:00:00]} e5 {[%emt 0:00:00]} 8. d5 {
[%emt 0:00:00]} Bc5 {[%emt 0:00:00]} 9. Nf3 {[%emt 0:00:00]} Bg4 {[%emt 0:00:
00]} 10. h3 {[%emt 0:00:00]} Bxf3 {[%emt 0:00:00]} 11. Qxf3 {[%emt 0:00:00]} a5
{[%emt 0:00:00]} 12. g4 {[%emt 0:00:00]} g6 {[%emt 0:00:00]} 13. Bd3 {[%emt 0:
00:00]} Nfd7 {[%emt 0:00:00]} 14. h4 {[%emt 0:00:00]} h5 {[%emt 0:00:00]} 15.
Bg5 {[%emt 0:00:00]} Be7 {[%emt 0:00:00]} 16. Rf1 {[%emt 0:00:00]} Rh7 {
[%emt 0:00:00]} 17. Bxe7 {[%emt 0:00:00]} Qxe7 {[%emt 0:00:00]} 18. g5 {
[%emt 0:00:00]} Na6 {[%emt 0:00:00]} 19. O-O-O {[%emt 0:00:00]} O-O-O {[%emt 0:
00:00]} 20. Bc2 {[%emt 0:00:00]} Rf8 {[%emt 0:00:00]} 21. d6 {[%emt 0:00:00]}
cxd6 {[%emt 0:00:00]} 22. Nb5 {[%emt 0:00:00]} f6 {[%emt 0:00:00]} 23. Qc3 {
[%emt 0:00:00]} fxg5 {[%emt 0:00:00]} 24. Rxf8+ {[%emt 0:00:00]} Nxf8 {[%emt 0:
00:00]} 25. Qxa5 {[%emt 0:00:00]} Nc7 {[%emt 0:00:00]} 26. Nxd6+ {[%emt 0:00:
00]} Kb8 {[%emt 0:00:00]} 27. Qb6 {[%emt 0:00:00]} Na8 {[%emt 0:00:00]} 28. Qb5
{[%emt 0:00:00]} gxh4 {[%emt 0:00:00]} 29. Nxb7 {[%emt 0:00:00]} Qg5+ {[%emt 0:
00:00]} 30. Kb1 {[%emt 0:00:00]} Rxb7 {[%emt 0:00:00]} 31. Qe8+ {[%emt 0:00:00]
} Ka7 {[%emt 0:00:00]} 32. Qxf8 {[%emt 0:00:00]} Nb6 {[%emt 0:00:00]} 33. Qc5 {
[%emt 0:00:00]} h3 {[%emt 0:00:00]} 34. Qa5+ {[%emt 0:00:00]} Kb8 {[%emt 0:00:
00]} 35. c5 {[%emt 0:00:00]} Nc8 {[%emt 0:00:00]} 36. c6 {[%emt 0:00:00]} Rb6 {
[%emt 0:00:00]} 37. Qc5 {[%emt 0:00:00]} h2 {[%emt 0:00:00]} 38. Ka2 {[%emt 0:
00:00]} Qe7 {[%emt 0:00:00]} 39. Qc4 {[%emt 0:00:00]} Nd6 {[%emt 0:00:00]} 40.
Qc5 {[%emt 0:01:03]} Nc8 {[%emt 0:01:08]} 41. Qf2 {[%emt 0:00:00]} Qe6+ {
[%emt 0:00:00]} 42. Ka1 {[%emt 0:00:00]} Qh3 {[%emt 0:00:00]} 43. Rh1 {[%emt 0:
00:00]} Rxc6 {[%emt 0:00:00]} 44. Rxh2 {[%emt 0:00:00]} Rf6 {[%emt 0:00:00]}
45. Qd2 {[%emt 0:00:00]} Qf1+ {[%emt 0:00:00]} 46. Ka2 {[%emt 0:00:00]} Qc4+ {
[%emt 0:00:00]} 47. Bb3 {[%emt 0:00:00]} Qxe4 {[%emt 0:00:00]} 48. Qa5 {
[%emt 0:00:00]} Qd4 {[%emt 0:00:00]} 49. Rc2 {[%emt 0:00:00]} Rb6 {[%emt 0:00:
00]} 50. Rc5 {[%emt 0:00:00]} e4 {[%emt 0:00:00]} 51. Rc4 {[%emt 0:00:00]} Qf6
{[%emt 0:00:00]} 52. Qc5 {[%emt 0:00:00]} Qd8 {[%emt 0:00:00]} 53. Qe5+ {
[%emt 0:00:00]} Nd6 {[%emt 0:00:00]} 54. Rc5 {[%emt 0:00:00]} Qe8 {[%emt 0:00:
00]} 55. Be6 {[%emt 0:00:00]} Qa4 {[%emt 0:00:00]} 56. Ra5 {[%emt 0:00:26]} Qe8
{[%emt 0:00:00]} 57. Rc5 {[%emt 0:00:00]} Ka7 {[%emt 0:00:00]} 58. Ra5+ {
[%emt 0:00:32]} Kb8 {[%emt 0:00:00]} 59. Rc5 {[%emt 0:00:44]} 1/2-1/2